bitfinex-derivatives/quotes_BNBF0:USTF0_20250904
["timestamp","ask_amount","ask_price","bid_price","bid_amount"]
[1756970717798,1.26642614,848.05,846.97,0.79548895]
[1756970717999,1.26642614,848.05,846.98,0.79548895]
[1756970718199,0.20523224,848.05,846.95,0.79548895]
[1756970718402,1.0611939,848.03,846.96,0.79548895]
[1756970718602,1.0611939,848.04,846.97,0.79548895]
[1756970718803,1.0611939,848.03,846.96,0.79548895]
[1756970719100,1.0611939,848.01,846.96,0.79548895]
[1756970719400,1.0611939,848.03,846.94,0.79548895]
[1756970719800,1.0611939,848.01,846.93,0.79548895]
[1756970720205,1.0611939,848.03,846.91,0.79548895]
[1756970720904,1.0611939,848.03,846.72,1.0579705]
[1756970720905,1.0611939,848.02,846.92,0.79548895]
[1756970721105,1.0611939,848.03,846.9,0.79548895]
[1756970721300,0.20523224,848.05,846.87,0.79548895]
[1756970721301,1.0611939,847.98,846.87,0.79548895]
[1756970721500,1.0611939,847.97,846.87,0.79548895]
[1756970721706,0.20523224,848.05,846.84,0.79548895]
[1756970721906,1.26642614,848.05,846.84,0.79548895]
[1756970722203,0.20523224,848.05,846.83,0.79548895]
[1756970725115,0.20523224,848.05,846.82,0.79548895]
[1756970728016,0.20523224,848.05,846.83,0.79548895]
[1756970728316,0.20523224,848.05,846.84,0.79548895]
[1756970729017,0.20523224,848.05,846.88,0.79548895]
[1756970729417,0.20523224,848.05,846.89,0.79548895]
[1756970730215,0.20523224,848.05,846.9,0.79548895]
[1756970731019,0.20523224,848.05,846.89,0.79548895]
[1756970731719,0.20523224,848.05,846.92,0.79548895]
[1756970732517,0.20523224,848.05,846.91,0.79548895]
[1756970733019,0.20523224,848.05,846.92,0.79548895]
[1756970734322,0.20523224,848.05,846.91,0.79548895]
[1756970735017,0.20523224,848.05,846.89,0.79548895]
[1756970735321,0.20523224,848.05,846.45,0.20531943]
[1756970735322,0.20523224,848.05,846.88,0.79548895]
[1756970736022,0.20523224,848.05,846.89,0.79548895]
[1756970736316,0.20523224,848.05,846.88,0.79548895]
[1756970738218,0.20523224,848.05,846.87,0.79548895]
[1756970739634,0.79099723,847.91,846.78,0.79548895]
[1756970740130,0.79099723,847.91,846.6,1.0579705]
[1756970740131,0.79099723,847.91,846.79,0.79548895]
[1756970740933,0.79099723,847.9,846.79,0.79548895]
[1756970742033,0.79099723,847.88,846.8,0.79548895]
[1756970744935,0.79099723,847.86,846.82,0.79548895]
[1756970745139,0.79099723,847.84,846.82,0.79548895]
[1756970746338,0.79099723,847.84,846.83,0.79548895]
[1756970747137,0.79099723,847.86,846.81,0.79548895]
[1756970747341,0.79099723,847.82,846.77,0.79548895]
[1756970748540,0.79099723,847.82,846.78,0.79548895]
[1756970748938,0.79099723,847.83,846.78,0.79548895]
[1756970749139,0.20523224,848.05,846.79,0.79548895]
[1756970749140,0.79099723,847.84,846.79,0.79548895]
[1756970749340,0.79099723,847.84,846.8,0.79548895]
[1756970750444,0.79099723,847.83,846.79,0.79548895]
[1756970750846,0.79099723,847.84,846.8,0.79548895]
[1756970751846,0.79099723,847.85,846.8,0.79548895]
[1756970752045,0.20523224,848.05,846.45,0.20531943]
[1756970752046,0.79099723,847.9,846.85,0.79548895]
[1756970752346,0.79099723,847.89,846.85,0.79548895]
[1756970752547,0.79099723,847.9,846.85,0.79548895]
[1756970753243,0.79099723,847.89,846.85,0.79548895]
[1756970754148,0.79099723,847.89,846.86,0.79548895]
[1756970754349,0.99622947,848.05,846.76,0.79548895]
[1756970754556,0.20523224,848.05,846.84,0.79548895]
[1756970757246,0.20523224,848.05,846.85,0.79548895]
[1756970759348,0.20523224,848.05,846.86,0.79548895]
[1756970759652,0.20523224,848.05,846.88,0.79548895]
[1756970760151,0.20523224,848.05,846.45,0.20531943]
[1756970760152,0.20523224,848.05,846.87,0.79548895]
[1756970760547,0.20523224,848.05,846.88,0.79548895]
[1756970763551,0.20523224,848.05,846.93,0.79548895]
[1756970764251,0.79099723,848.02,846.98,0.79548895]
[1756970765053,0.79099723,848.04,846.97,0.79548895]
[1756970765251,0.79099723,848.03,846.97,0.79548895]
[1756970766150,0.79099723,848.02,846.97,0.79548895]
[1756970766354,0.79099723,848.02,846.98,0.79548895]
[1756970766849,0.79099723,848.03,846.97,0.79548895]
[1756970767354,0.79099723,848.02,846.97,0.79548895]
[1756970768256,0.79099723,848.01,846.98,0.79548895]
[1756970768750,0.79099723,848.0,846.99,0.79548895]
[1756970769255,0.79099723,847.99,847.0,0.79548895]
[1756970769656,0.20523224,848.05,847.07,0.79548895]
[1756970770255,0.20523224,848.05,847.08,0.79548895]
[1756970771256,0.20523224,848.05,847.09,0.79548895]
[1756970771652,0.20523224,848.05,847.1,0.79548895]
[1756970772353,0.20523224,848.05,847.11,0.79548895]
[1756970773261,0.20523224,848.05,847.12,0.79548895]
[1756970773456,0.20523224,848.05,847.13,0.79548895]
[1756970774161,0.20523224,848.05,847.14,0.79548895]
[1756970774556,0.20523224,848.05,847.13,0.79548895]
[1756970774860,0.20523224,848.05,846.45,0.20531943]
[1756970774861,0.20523224,848.05,847.14,0.79548895]
[1756970775357,0.20523224,848.05,847.15,0.79548895]
[1756970775860,0.20523224,848.05,847.16,0.79548895]
[1756970776257,0.20523224,848.05,847.18,0.79548895]
[1756970776462,0.20523224,848.05,847.17,0.79548895]
[1756970776762,0.20523224,848.05,847.16,0.79548895]
[1756970779458,0.20523224,848.05,847.17,0.79548895]
[1756970779656,0.20523224,848.05,847.16,0.79548895]
[1756970782461,0.20523224,848.05,847.15,0.79548895]
[1756970784565,0.20523224,848.05,847.16,0.79548895]
[1756970785867,0.20523224,848.05,847.17,0.79548895]
[1756970786568,0.20523224,848.05,847.18,0.79548895]
[1756970787367,0.20523224,848.05,847.19,0.79548895]
[1756970787765,0.20523224,848.05,847.16,0.79548895]
[1756970788163,0.20523224,848.05,846.99,1.0579705]
[1756970788164,1.26642614,848.05,847.15,0.79548895]
[1756970789269,1.26642614,848.05,846.97,1.0579705]
[1756970789270,1.0611939,848.03,847.12,0.79548895]
[1756970791770,1.0611939,848.01,847.13,0.79548895]
[1756970791972,1.0611939,848.01,847.14,0.79548895]
[1756970792271,1.0611939,848.0,847.14,0.79548895]
[1756970792472,1.0611939,847.99,847.15,0.79548895]
[1756970793573,1.0611939,847.98,847.15,0.79548895]
[1756970795677,1.0611939,847.97,847.16,0.79548895]
[1756970797578,1.0611939,847.95,847.17,0.79548895]
[1756970797774,1.0611939,847.94,847.17,0.79548895]
[1756970798879,1.0611939,847.92,847.18,0.79548895]
[1756970799080,1.0611939,847.99,847.15,0.79548895]
[1756970799576,1.0611939,847.98,847.15,0.79548895]
[1756970799779,1.0611939,847.99,847.15,0.79548895]
[1756970800081,1.0611939,847.98,847.15,0.79548895]
[1756970802178,1.0611939,847.98,847.16,0.79548895]
[1756970802679,1.0611939,847.97,847.15,0.79548895]
[1756970803278,1.0611939,847.97,847.16,0.79548895]
[1756970804084,1.0611939,848.02,847.15,0.79548895]
[1756970804382,1.0611939,848.03,847.17,0.79548895]
[1756970806187,1.0611939,848.04,847.18,0.79548895]
[1756970806389,0.20523224,848.05,847.21,0.79548895]
[1756970807291,0.20523224,848.05,847.03,1.0579705]
[1756970808091,0.20523224,848.05,846.86,1.586958]
[1756970808491,0.20523224,848.05,846.45,0.20531943]
[1756970809893,1.060317,848.02,847.24,0.79477069]
[1756970810594,1.060317,848.02,847.08,1.0596942]
[1756970811092,1.060317,848.02,846.92,1.5895413]
[1756970811392,0.20523224,848.05,846.92,1.5895413]
[1756970812391,0.20523224,848.05,846.45,0.20531943]
[1756970821403,0.20523224,848.05,847.39,0.79421769]
[1756970822404,0.20523224,848.05,847.38,0.79421769]
[1756970822704,0.20523224,848.05,847.39,0.79421769]
[1756970824104,0.20523224,848.05,847.38,0.79421769]
[1756970824907,0.20523224,848.05,847.41,0.79421769]
[1756970825404,0.20523224,848.05,847.4,0.79421769]
[1756970826506,0.20523224,848.05,847.41,0.79421769]
[1756970827207,0.20523224,848.05,846.53,2.6492356]
[1756970827208,0.20523224,848.05,847.4,0.79421769]
[1756970828808,0.20523224,848.05,847.39,0.79421769]
[1756970830511,0.20523224,848.05,847.33,0.79421769]
[1756970831414,0.20523224,848.05,847.32,0.79421769]
[1756970831812,0.20523224,848.05,847.12,1.0589569]
[1756970831813,0.20523224,848.05,847.33,0.79421769]
[1756970832410,0.20523224,848.05,846.93,1.5884353]
[1756970832411,0.20523224,848.05,847.35,0.79421769]
[1756970832610,0.20523224,848.05,847.33,0.79421769]
[1756970833615,0.20523224,848.05,847.35,0.79421769]
[1756970834412,0.20523224,848.05,847.34,0.79421769]
[1756970836311,0.20523224,848.05,847.33,0.79421769]
[1756970838219,0.20523224,848.05,847.32,0.79421769]
[1756970840215,0.20523224,848.05,846.45,0.20531943]
[1756970840216,0.20523224,848.05,847.34,0.79421769]
[1756970841216,0.20523224,848.05,847.35,0.79421769]
[1756970841416,0.20523224,848.05,847.34,0.79421769]
[1756970841615,0.20523224,848.05,847.35,0.79421769]
[1756970842115,0.20523224,848.05,847.39,0.79421769]
[1756970842817,0.20523224,848.05,847.4,0.79421769]
[1756970843017,0.20523224,848.05,847.42,0.79421769]
[1756970843219,0.20523224,848.05,847.44,0.79421769]
[1756970843717,0.20523224,848.05,847.43,0.79421769]
[1756970843917,0.20523224,848.05,847.46,0.79421769]
[1756970844121,0.20523224,848.05,847.45,0.79421769]
[1756970845424,0.20523224,848.05,847.44,0.79421769]
[1756970845824,0.20523224,848.05,847.45,0.79421769]
[1756970846324,0.20523224,848.05,847.44,0.79421769]
[1756970847322,0.20523224,848.05,847.43,0.79421769]
[1756970848527,0.20523224,848.05,847.48,0.79421769]
[1756970850124,0.20523224,848.05,847.47,0.79421769]
[1756970850329,0.20523224,848.05,847.48,0.79421769]
[1756970850927,0.20523224,848.05,847.47,0.79421769]
[1756970851527,0.20523224,848.05,847.51,0.79421769]
[1756970851726,0.20523224,848.05,847.5,0.79421769]
[1756970853232,0.20523224,848.05,847.49,0.79421769]
[1756970855238,0.20523224,848.05,847.5,0.79421769]
[1756970856644,0.20523224,848.05,847.51,0.79421769]
[1756970856840,0.20523224,848.05,847.53,0.79421769]
[1756970859847,0.20523224,848.05,847.54,0.79421769]
[1756970861345,0.20523224,848.05,847.57,0.79421769]
[1756970861645,0.20523224,848.05,847.59,0.79421769]
[1756970862451,0.20523224,848.05,847.61,0.79421769]
[1756970862648,0.20523224,848.05,847.62,0.79421769]
[1756970862948,1.0600551,848.73,847.62,0.79421769]
[1756970863346,0.20515118,848.18,847.62,0.79421769]
[1756970863546,1.0600551,848.73,847.62,0.79421769]
[1756970863746,0.20515118,848.18,847.62,0.79421769]
[1756970864049,1.0600551,848.73,847.62,0.79421769]
[1756970864246,0.20515118,848.18,847.62,0.79421769]
[1756970864652,1.0600551,848.75,847.64,0.79421769]
[1756970864849,0.20515058,848.18,847.65,0.79421769]
[1756970865054,1.0600551,848.76,847.65,0.79421769]
[1756970865352,0.20514755,848.18,847.65,0.79421769]
[1756970865550,1.0600551,848.76,847.65,0.79421769]
[1756970865749,0.20514755,848.18,847.65,0.79421769]
[1756970866154,1.0600551,848.77,847.65,0.79421769]
[1756970866353,0.20514272,848.22,847.65,0.79421769]
[1756970866549,1.0600551,848.77,847.65,0.79421769]
[1756970866753,0.20514332,848.22,847.65,0.79421769]
[1756970867053,1.0600551,848.76,847.65,0.79421769]
[1756970867253,1.0600551,848.77,847.65,0.79421769]
[1756970867453,0.20514272,848.22,847.63,0.79421769]
[1756970867653,1.0600551,848.8,847.63,0.79421769]
[1756970867854,0.20514151,848.22,847.63,0.79421769]
[1756970868050,1.0600551,848.8,847.63,0.79421769]
[1756970868254,1.0600551,848.81,847.63,0.79421769]
[1756970868456,0.20514151,848.22,847.63,0.79421769]
[1756970868750,1.0600551,848.81,847.63,0.79421769]
[1756970869051,1.0600551,848.89,847.6,0.79421769]
[1756970869356,0.2051409,848.52,847.62,0.79421769]
[1756970871053,0.2051409,848.52,847.61,0.79421769]
[1756970871354,0.2051409,848.52,847.62,0.79421769]
[1756970871551,0.2051409,848.52,847.61,0.79421769]
[1756970872054,0.2051409,848.52,847.62,0.79421769]
[1756970872252,0.2051409,848.52,847.61,0.79421769]
[1756970877361,0.2051409,848.52,847.62,0.79421769]
[1756970878157,0.2051409,848.52,847.61,0.79421769]
[1756970878356,0.2051409,848.52,847.62,0.79421769]
[1756970878758,0.2051409,848.52,847.63,0.79421769]
[1756970878958,0.2051409,848.52,847.64,0.79421769]
[1756970880158,0.2051409,848.52,847.65,0.79421769]
[1756970880463,0.2051409,848.52,847.72,0.79421769]
[1756970880862,0.2051409,848.52,847.73,0.79421769]
[1756970882561,0.2051409,848.52,847.7,0.79421769]
[1756970884467,0.2051409,848.52,847.52,1.0589569]
[1756970884664,0.2051409,848.52,847.7,0.78890909]
[1756970885567,0.2051409,848.52,847.71,0.78890909]
[1756970888469,0.2051409,848.52,847.69,0.78890909]
[1756970888669,0.2051409,848.52,847.67,0.78890909]
[1756970890167,0.2051409,848.52,847.62,0.78890909]
[1756970890468,0.2051409,848.52,847.58,0.78890909]
[1756970893174,0.2051409,848.52,847.59,0.78890909]
[1756970893474,0.2051409,848.52,847.57,0.78890909]
[1756970896374,0.2051409,848.52,847.58,0.78890909]
[1756970897470,0.2051409,848.52,847.59,0.78890909]
[1756970899270,0.2051409,848.52,847.61,0.78890909]
[1756970900174,0.2051409,848.52,847.63,0.78890909]
[1756970900374,0.2051409,848.52,847.65,0.78890909]
[1756970901174,0.2051409,848.52,847.66,0.78890909]
[1756970902174,0.2051409,848.52,847.67,0.78890909]
[1756970902775,0.2051409,848.52,847.66,0.78890909]
[1756970903273,0.2051409,848.52,847.69,0.78890909]
[1756970903472,0.2051409,848.52,847.68,0.78890909]
[1756970904170,0.2051409,848.52,847.51,1.0589569]
[1756970904171,0.2051409,848.52,847.69,0.78890909]
[1756970904874,0.2051409,848.52,847.7,0.78890909]
[1756970905175,0.2051409,848.52,847.71,0.78890909]
[1756970906273,0.2051409,848.52,847.72,0.78890909]
[1756970907178,0.2051409,848.52,847.73,0.78890909]
[1756970908180,0.2051409,848.52,847.74,0.78890909]
[1756970909278,1.0600551,848.5,847.76,0.78890909]
[1756970909578,1.0600551,848.49,847.77,0.78890909]
[1756970909781,1.0600551,848.5,847.76,0.78890909]
[1756970910185,1.0600551,848.49,847.77,0.78890909]
[1756970910582,1.0600551,848.5,847.77,0.78890909]
[1756970911184,1.0600551,848.49,847.78,0.78890909]
[1756970911385,1.0600551,848.49,847.77,0.78890909]
[1756970912285,1.0600551,848.48,847.78,0.78890909]
[1756970913185,1.0600551,848.49,847.78,0.78890909]
[1756970915190,1.0600551,848.48,847.78,0.78890909]
[1756970915387,1.0600551,848.48,847.79,0.78890909]
[1756970916088,1.0600551,848.47,847.79,0.78890909]
[1756970917693,1.0600551,848.48,847.79,0.78890909]
[1756970919594,1.0600551,848.47,847.79,0.78890909]
[1756970920490,1.0600551,848.46,847.79,0.78890909]
[1756970922396,1.0600551,848.45,847.79,0.78890909]
[1756970922696,1.0600551,848.45,847.8,0.78890909]
[1756970923997,1.0600551,848.51,847.77,0.78890909]
[1756970931003,1.265196,848.52,847.77,0.78890909]
[1756970932306,0.2051409,848.52,847.76,0.78890909]
[1756970933906,1.0600551,848.47,847.79,0.78890909]
[1756970934502,0.2051409,848.52,847.75,0.78890909]
[1756970940012,0.2051409,848.52,847.76,0.78890909]
[1756970940211,0.2051409,848.52,847.75,0.78890909]
[1756970941408,0.2051409,848.52,847.76,0.78890909]
[1756970941808,0.2051409,848.52,847.75,0.78890909]
[1756970942115,0.2051409,848.52,847.76,0.78890909]
[1756970944512,1.0600551,848.46,847.8,0.78890909]
[1756970945313,1.0600551,848.47,847.8,0.78890909]
[1756970946115,1.0600551,848.46,847.8,0.78890909]
[1756970946312,1.0600551,848.46,847.81,0.78890909]
[1756970947017,1.0600551,848.46,847.8,0.78890909]
[1756970947314,1.0600551,848.45,847.81,0.78890909]
[1756970948315,1.0600551,848.44,847.82,0.78890909]
[1756970949322,1.0600551,848.43,847.83,0.78890909]
[1756970950319,1.0600551,848.5,847.75,0.78890909]
[1756970950621,1.0600551,848.39,847.78,0.78890909]
[1756970950821,1.0600551,848.37,847.79,0.78890909]
[1756970951021,1.0600551,848.36,847.77,0.78890909]
[1756970951321,1.0600551,848.37,847.76,0.78890909]
[1756970952723,1.0600551,848.38,847.76,0.78890909]
[1756970953222,1.0600551,848.36,847.77,0.78890909]
[1756970953520,1.0600551,848.37,847.77,0.78890909]
[1756970955320,1.0600551,848.37,847.76,0.78890909]
[1756970956322,1.0600551,848.36,847.77,0.78890909]
[1756970956918,1.0600551,848.39,847.75,0.78890909]
[1756970957325,1.0600551,848.39,847.74,0.78890909]
[1756970957822,1.0600551,848.39,847.74,0.79380596]
[1756970958021,1.0600551,848.42,847.73,0.79380596]
[1756970958223,1.0600551,848.39,847.69,0.79380596]
[1756970958526,1.0600551,848.37,847.67,0.79380596]
[1756970959322,1.0600551,848.38,847.67,0.79380596]
[1756970960223,1.0600551,848.41,847.66,0.79380596]
[1756970960525,1.0600551,848.39,847.64,0.79380596]
[1756970961424,1.0600551,848.42,847.62,0.79380596]
[1756970961628,1.0600551,848.4,847.61,0.79380596]
[1756970962325,1.0600551,848.41,847.6,0.79380596]
[1756970963329,1.0600551,848.38,847.58,0.79380596]
[1756970964027,1.0600551,848.37,847.58,0.79380596]
[1756970964337,1.0600551,848.37,846.69,0.20516449]
[1756970964338,1.0600551,848.42,847.5,0.79380596]
[1756970965429,1.0600551,848.43,847.49,0.79380596]
[1756970966429,1.0600551,848.43,847.48,0.79380596]
[1756970966826,1.0600551,848.44,847.48,0.79380596]
[1756970967029,1.0600551,848.43,847.48,0.79380596]
[1756970967428,1.0600551,848.42,847.48,0.79380596]
[1756970968328,1.0600551,848.43,847.48,0.79380596]
[1756970969328,0.2051409,848.52,847.47,0.79380596]
[1756970969329,1.0600551,848.44,847.47,0.79380596]
[1756970970032,1.0600551,848.43,847.47,0.79380596]
[1756970970433,1.0600551,848.44,847.47,0.79380596]
[1756970971334,1.0600551,848.45,847.46,0.79380596]
[1756970972530,0.2051409,848.52,847.41,0.79380596]
[1756970972734,0.2051409,848.52,847.4,0.79380596]
[1756970973032,0.2051409,848.52,847.41,0.79380596]
[1756970974134,0.2051409,848.52,847.42,0.79380596]
[1756970974337,0.2051409,848.52,847.41,0.79380596]
[1756970975132,0.2051409,848.52,847.42,0.79380596]
[1756970975334,0.2051409,848.52,847.41,0.79380596]
[1756970979733,0.2051409,848.52,847.4,0.79380596]
[1756970980529,0.2051409,848.52,847.17,1.0589569]
[1756970980733,0.2051409,848.52,847.4,0.79298556]
[1756970982434,1.0600551,848.34,847.49,0.79298556]
[1756970982634,1.0600551,848.36,847.47,0.79298556]
[1756970985837,1.0600551,848.35,847.47,0.79298556]
[1756970986435,1.0600551,848.36,847.47,0.79298556]
[1756970986738,1.0600551,848.41,847.45,0.79298556]
[1756970988541,1.0600551,848.43,847.44,0.79298556]
[1756970989939,1.0600551,848.42,847.44,0.79298556]
[1756970990145,1.0600551,848.41,847.45,0.79298556]
[1756970992448,1.0600551,848.4,847.46,0.79298556]
[1756970992948,1.0600551,848.42,847.45,0.79298556]
[1756970995547,1.0600551,848.41,847.45,0.79298556]
[1756970996546,1.0600551,848.38,847.47,0.79298556]
[1756970997546,1.0600551,848.37,847.47,0.79298556]
[1756970998554,1.0600551,848.35,847.48,0.79298556]
[1756970999354,1.0600551,848.34,847.49,0.79298556]
[1756971001256,1.0600551,848.39,847.47,0.79298556]
[1756971002757,1.0600551,848.37,847.48,0.79298556]
[1756971004454,1.0600551,848.36,847.48,0.79298556]
[1756971005155,0.2051409,848.52,847.45,0.79298556]
[1756971005156,1.0600551,848.33,847.45,0.79298556]
[1756971005457,1.0600551,848.26,847.39,0.79298556]
[1756971005656,1.0600551,848.27,847.39,0.79298556]
[1756971007261,1.0600551,848.26,847.39,0.79298556]
[1756971008462,1.0600551,848.26,847.4,0.79298556]
[1756971009061,1.0600551,848.26,847.39,0.79298556]
[1756971009461,1.0600551,848.26,847.4,0.79298556]
[1756971009757,1.0600551,848.25,847.4,0.79298556]
[1756971010260,1.0600551,848.26,847.4,0.79298556]
[1756971010461,1.0600551,848.19,847.43,0.79298556]
[1756971010958,1.0600551,848.18,847.43,0.79298556]
[1756971012557,1.5900827,848.32,847.43,0.79298556]
[1756971012558,1.0600551,848.17,847.43,0.79298556]
[1756971013059,1.0600551,848.17,847.29,1.0589569]
[1756971013060,1.0600551,848.17,847.44,0.79298556]
[1756971013264,1.0600551,848.19,847.42,0.79298556]
[1756971013462,1.0600551,848.19,847.43,0.79298556]
[1756971015660,1.0600551,848.18,847.44,0.79298556]
[1756971016363,1.0600551,848.2,847.43,0.79298556]
[1756971018965,1.0600551,848.19,847.44,0.79298556]
[1756971022264,1.0600551,848.19,847.45,0.79298556]
[1756971022967,1.0600551,848.19,847.44,0.79298556]
[1756971023166,1.0600551,848.18,847.45,0.79298556]
[1756971023470,1.0600551,848.15,847.47,0.79298556]
[1756971024166,1.0600551,848.14,847.46,0.79298556]
[1756971025572,1.0600551,848.21,847.43,0.79298556]
[1756971025770,1.0600551,848.2,847.44,0.79298556]
[1756971026271,1.0600551,848.2,847.43,0.79298556]
[1756971026470,1.0600551,848.21,847.43,0.79298556]
[1756971027170,1.0600551,848.18,847.44,0.79298556]
[1756971032270,1.0600551,848.23,847.42,0.79298556]
[1756971032772,1.0600551,848.22,847.42,0.79298556]
[1756971033572,1.0600551,848.23,847.42,0.79298556]
[1756971034272,1.0600551,848.22,847.42,0.79298556]
[1756971035375,1.0600551,848.2,847.43,0.79298556]
[1756971038274,1.0600551,848.21,847.43,0.79298556]
[1756971039575,1.0600551,848.2,847.43,0.79298556]
[1756971042178,1.0600551,848.15,847.45,0.79298556]
[1756971042682,1.0600551,848.14,847.46,0.79298556]
[1756971045785,1.0600551,848.14,847.47,0.79298556]
[1756971049385,1.0600551,848.14,847.48,0.79298556]
[1756971050485,1.0600551,848.14,847.47,0.79298556]
[1756971050785,1.0600551,848.15,847.47,0.79298556]
[1756971051289,1.0600551,848.14,847.48,0.79298556]
[1756971052393,1.0600551,848.15,847.48,0.79298556]
[1756971052890,1.0600551,848.15,847.33,1.0589569]
[1756971052891,1.0600551,848.15,847.47,0.79298556]
[1756971053289,1.0600551,848.15,847.48,0.79298556]
[1756971054287,1.0600551,848.14,847.48,0.79298556]
[1756971055486,1.0600551,848.16,847.48,0.79298556]
[1756971057392,1.0600551,848.15,847.48,0.79298556]
[1756971058393,1.0600551,848.15,847.49,0.79298556]
[1756971059394,1.0600551,848.14,847.49,0.79298556]
[1756971059795,1.0600551,848.13,847.5,0.79298556]
[1756971060195,1.0600551,848.14,847.49,0.79298556]
[1756971060396,1.0600551,848.13,847.5,0.79298556]
[1756971060892,1.0600551,848.14,847.49,0.79298556]
[1756971061092,1.0600551,848.31,847.5,0.79298556]
[1756971061391,1.0600551,848.32,847.51,0.79298556]
[1756971061697,1.0600551,848.38,847.56,0.79298556]
[1756971062289,0.2051409,848.52,847.37,1.0589569]
[1756971062290,1.0600551,848.39,847.57,0.79298556]
[1756971062494,1.0600551,848.39,847.56,0.79298556]
[1756971063098,1.0600551,848.39,847.57,0.79298556]
[1756971063298,1.0600551,848.4,847.56,0.79298556]
[1756971064200,1.0600551,848.29,847.61,0.79298556]
[1756971064400,1.0600551,848.33,847.63,0.79298556]
[1756971064800,1.0600551,848.37,847.62,0.79298556]
[1756971065002,1.0600551,848.38,847.62,0.79298556]
[1756971065496,1.0600551,848.39,847.6,0.79298556]
[1756971065696,1.0600551,848.4,847.61,0.79298556]
[1756971066294,0.2051409,848.52,847.61,0.79298556]
[1756971066295,1.0600551,848.41,847.61,0.79298556]
[1756971066502,1.0600551,848.41,847.6,0.79298556]
[1756971067101,1.0600551,848.38,847.62,0.79298556]
[1756971067401,1.0600551,848.38,847.61,0.79298556]
[1756971068408,1.0600551,848.39,847.6,0.79298556]
[1756971069311,1.0600551,848.4,847.6,0.79298556]
[1756971069709,0.20518384,848.2,847.6,0.79298556]
[1756971070509,0.20518384,848.2,847.59,0.79298556]
[1756971071213,0.20518384,848.2,847.58,0.79298556]
[1756971072313,0.20518384,848.2,847.41,1.0589569]
[1756971072314,0.20518384,848.2,847.57,0.79298556]
[1756971074316,0.20518384,848.2,847.56,0.79298556]
[1756971074710,0.20518384,848.2,847.58,0.79298556]
[1756971076416,0.20518384,848.2,847.59,0.79298556]
[1756971078314,0.20518384,848.2,847.52,0.79298556]
[1756971078513,0.20518384,848.2,847.6,0.79298556]
[1756971079317,0.20518384,848.2,847.59,0.79298556]
[1756971079816,0.20518384,848.2,847.58,0.79298556]
[1756971081519,0.20518384,848.2,847.57,0.79298556]
[1756971082317,0.20518384,848.2,846.69,0.20516449]
[1756971082318,0.20518384,848.2,847.56,0.79298556]
[1756971082718,0.20518384,848.2,847.57,0.79298556]
[1756971083320,1.0600551,848.9,847.61,0.79298556]
[1756971083523,0.2051409,848.28,847.61,0.79298556]
[1756971083820,1.0600551,848.9,847.61,0.79298556]
[1756971084016,0.20514151,848.18,847.51,0.79298556]
[1756971084215,0.20514151,848.18,847.5,0.79298556]
[1756971084419,1.0600551,849.08,847.5,0.79298556]
[1756971084616,0.20513667,848.18,847.51,0.79298556]
[1756971084919,1.0600551,849.09,847.51,0.79298556]
[1756971085119,0.20513727,848.69,847.51,0.79298556]
[1756971085419,0.20513727,848.69,847.5,0.79298556]
[1756971086322,0.20513727,848.69,847.17,1.0589569]
[1756971086323,0.20513727,848.69,847.49,0.79298556]
[1756971088315,0.20513727,848.69,847.48,0.79298556]
[1756971090320,0.20513727,848.69,847.47,0.79298556]
[1756971091815,0.20513727,848.69,847.48,0.79298556]
[1756971093822,0.20513727,848.69,847.58,0.79298556]
[1756971095322,0.20513727,848.69,847.49,0.79298556]
[1756971096019,0.20513727,848.69,847.47,0.79298556]
[1756971096222,0.20513727,848.69,847.43,0.79298556]
[1756971096718,0.20513727,848.69,847.44,0.79298556]
[1756971097722,0.20513727,848.69,847.39,0.79298556]
[1756971098721,0.20513727,848.69,847.12,1.0589569]
[1756971098922,0.20513727,848.69,847.39,0.79033018]
[1756971100819,0.20513727,848.69,847.33,0.79033018]
[1756971101816,0.20513727,848.69,847.31,0.79033018]
[1756971103519,0.20513727,848.69,847.32,0.79033018]
[1756971104928,1.26519237,848.69,847.33,0.79033018]
[1756971105131,1.26519237,848.69,846.82,1.5884353]
[1756971105132,1.26519237,848.69,847.28,0.79033018]
[1756971105328,1.26519237,848.69,847.29,0.79033018]
[1756971106029,1.26519237,848.69,847.28,0.79033018]
[1756971106230,1.0600551,848.63,847.28,0.79033018]
[1756971106427,0.20513727,848.69,847.24,0.79033018]
[1756971106428,1.0600551,848.5,847.24,0.79033018]
[1756971108431,1.0600551,848.4,847.16,0.79033018]
[1756971110330,1.0600551,848.4,847.15,0.79033018]
[1756971111236,1.0600551,848.4,847.16,0.79033018]
[1756971111532,1.0600551,848.41,847.15,0.79033018]
[1756971112035,1.0600551,848.4,847.14,0.79033018]
[1756971112333,1.0600551,848.41,847.14,0.79033018]
[1756971112536,1.0600551,848.42,847.13,0.79033018]
[1756971112835,1.0600551,848.42,847.14,0.79033018]
[1756971113035,1.0600551,848.46,847.12,0.79033018]
[1756971114336,1.0600551,848.47,847.11,0.79033018]
[1756971116334,1.0600551,848.48,847.11,0.79033018]
[1756971117534,1.0600551,848.5,847.1,0.79033018]
[1756971118239,1.0600551,848.45,847.12,0.79033018]
[1756971118635,1.0600551,848.46,847.12,0.79033018]
[1756971118934,1.0600551,848.45,847.12,0.79033018]
[1756971119133,1.0600551,848.44,847.11,0.79033018]
[1756971119336,1.0600551,848.45,847.11,0.79033018]